bitfinex/quotes_ETHUSD_20240922
["timestamp","ask_amount","ask_price","bid_price","bid_amount"]
[1727014871840,0.07954527,2575.9,2575.5,3.88272]
[1727014872061,0.81416505,2575.9,2575.6,3.0]
[1727014872203,0.0795799,2575.8,2575.6,3.0]
[1727014872620,0.0795799,2575.8,2575.5,3.0]
[1727014872861,0.89374495,2575.8,2575.4,6.22987]
[1727014873067,0.89374495,2575.8,2575.4,7.31436778]
[1727014873566,0.89374495,2575.8,2575.5,3.88259]
[1727014873916,0.89374495,2575.8,2575.6,3.88258]
[1727014875023,0.0795799,2575.8,2575.6,7.76516]
[1727014875321,0.0795799,2575.8,2575.7,3.88243]
[1727014875727,0.0795799,2575.8,2575.7,4.65892]
[1727014876034,0.81416505,2576.0,2575.8,6.22929]
[1727014876657,0.81416505,2576.1,2575.8,2.3471]
[1727014876831,0.81416505,2576.1,2575.7,3.88243]
[1727014877037,0.81416505,2576.0,2575.7,3.88243]
[1727014878056,0.81416505,2576.0,2575.7,7.76477]
[1727014878369,0.81416505,2576.0,2575.7,7.7647]
[1727014878563,0.81416505,2576.1,2575.7,7.7647]
[1727014878862,0.81416505,2576.1,2575.8,3.88227]
[1727014879629,0.81416505,2576.1,2575.7,3.88234]
[1727014879962,0.81416505,2576.1,2575.7,7.76468]
[1727014880163,0.81416505,2576.1,2575.8,3.88224]
[1727014880925,0.81416505,2576.1,2575.8,3.8822]
[1727014881369,3.19646505,2576.2,2575.8,4.896508]
[1727014882419,3.19646505,2576.2,2575.8,8.778708]
[1727014882623,3.19646505,2576.2,2575.8,4.896508]
[1727014882859,3.19646505,2576.2,2575.6,7.76491]
[1727014882860,0.81416505,2576.1,2575.6,7.76491]
[1727014883029,0.81416505,2576.1,2575.6,3.88244]
[1727014883852,0.81416505,2576.1,2575.7,3.88233]
[1727014884290,0.81416505,2576.1,2575.8,3.88228]
[1727014884457,0.07879358,2576.0,2575.8,3.88228]
[1727014885290,3.19646505,2576.2,2575.8,3.88228]
[1727014885595,0.07878532,2575.9,2575.8,3.88228]
[1727014885774,3.19646505,2576.2,2575.8,3.88228]
[1727014885980,0.07878532,2575.9,2575.8,3.88228]
[1727014886187,3.19646505,2576.2,2575.8,3.88228]
[1727014886374,3.19646505,2576.2,2575.6,3.88244]
[1727014886375,0.07878532,2575.9,2575.7,3.88235]
[1727014886583,0.81416505,2576.1,2575.7,3.88235]
[1727014887093,0.07879358,2576.0,2575.7,3.88235]
[1727014887300,0.81416505,2576.1,2575.7,3.88235]
[1727014887461,0.07878532,2575.9,2575.8,3.88224]
[1727014887654,0.07878532,2575.9,2575.7,3.88235]
[1727014887655,4.69605505,2576.1,2575.5,3.0]
[1727014887860,4.69605505,2576.1,2575.5,10.76527]
[1727014887861,0.07878532,2575.9,2575.5,10.76527]
[1727014888194,0.81416505,2576.0,2575.5,6.88262]
[1727014888398,0.81416505,2576.0,2575.4,3.0]
[1727014888399,0.07877706,2575.8,2575.4,3.0]
[1727014888694,0.07870447,2575.7,2575.3,11.26294]
[1727014888851,3.88243,2575.8,2575.3,11.26294]
[1727014889179,2.38109621,2575.6,2575.3,7.38]
[1727014889503,0.07868437,2575.5,2575.3,7.38]
[1727014890795,2.3024,2575.3,2575.0,27.9838438]
[1727014891000,6.1855,2575.3,2575.0,27.9838438]
[1727014891331,0.07850482,2575.2,2575.0,27.9838438]
[1727014893862,3.96177482,2575.2,2575.0,27.9838438]
[1727014894787,3.88334,2575.1,2575.0,27.9838438]
[1727014894995,6.18574,2575.1,2575.0,27.9838438]
[1727014895209,7.07811083,2575.1,2575.0,27.9838438]
[1727014895634,7.48519335,2575.1,2575.0,27.9838438]
[1727014895833,7.89227588,2575.1,2575.0,27.9838438]
[1727014896736,7.48187435,2575.1,2575.0,27.9838438]
[1727014897096,6.26394578,2575.1,2575.0,27.9838438]
[1727014897493,7.48144542,2575.1,2575.0,27.9838438]
[1727014898209,7.48140358,2575.1,2575.0,27.9838438]
[1727014900743,6.26394578,2575.1,2575.0,27.9838438]
[1727014900928,7.48140358,2575.1,2575.0,27.9838438]
[1727014901126,6.26394578,2575.1,2575.0,27.9838438]
[1727014901732,7.07470966,2575.1,2575.0,27.9838438]
[1727014902124,6.26394578,2575.1,2575.0,27.9838438]
[1727014902441,7.48140358,2575.1,2575.0,27.32797246]
[1727014902666,9.26394578,2575.1,2575.0,16.09298363]
[1727014902948,12.00503808,2575.1,2575.0,6.61284282]
[1727014903135,3.88455,2574.3,2574.2,0.0381148]
[1727014903334,3.88455,2574.3,2573.4,0.0381148]
[1727014903335,3.88575,2573.5,2573.4,0.0381148]
[1727014903706,0.07719704,2573.5,2573.4,0.0381148]
[1727014903906,3.96294704,2573.5,2573.4,0.0381148]
[1727014904434,0.07719704,2573.5,2573.4,0.0381148]
[1727014904608,0.07719704,2573.5,2572.9,6.3018648]
[1727014904807,0.07719704,2573.5,2572.9,7.32073928]
[1727014904808,0.08899704,2573.5,2572.9,7.32073928]
[1727014905056,3.97484704,2573.5,2572.9,7.32073928]
[1727014905953,3.97484704,2573.5,2572.9,11.20730928]
[1727014906306,0.08899704,2573.5,2573.0,3.88648]
[1727014906508,0.08899704,2573.5,2572.9,7.32073928]
[1727014906760,3.89756,2573.5,2572.9,7.32073928]
[1727014907045,0.07698162,2573.4,2573.0,3.8865]
[1727014908637,0.07698162,2573.4,2573.1,3.88633]
[1727014910014,0.07698162,2573.4,2573.1,5.00703693]
[1727014910227,0.07698162,2573.4,2572.9,2.4153148]
[1727014910650,3.88562,2573.6,2573.1,3.88627]
[1727014911460,3.88562,2573.6,2573.1,7.77254]
[1727014913559,7.77084,2573.8,2573.3,2.4272]
[1727014913930,3.96245494,2573.7,2573.2,3.88613]
[1727014914974,0.07698494,2573.7,2573.2,3.88613]
[1727014916475,0.07698494,2573.7,2573.1,6.31356]
[1727014916476,3.96253494,2573.7,2573.1,6.31348]
[1727014916879,3.96253494,2573.7,2573.2,3.88609]
[1727014917542,7.84810494,2573.7,2573.2,3.88609]
[1727014917749,3.88562,2573.6,2573.1,2.4272]
[1727014917984,3.89742,2573.6,2573.1,6.31355]
[1727014918187,0.07696839,2573.5,2573.1,6.31355]
[1727014919359,3.96275839,2573.5,2573.1,2.4272]
[1727014920450,0.07696839,2573.5,2573.1,6.31352]
[1727014920873,0.07696839,2573.5,2573.2,3.8862]
[1727014921199,0.07696839,2573.5,2573.4,2.3748]
[1727014921542,0.0118,2573.8,2573.4,6.26062]
[1727014921748,0.07695406,2573.5,2573.4,6.26062]
[1727014921967,0.0118,2573.8,2573.4,6.26062]
[1727014922159,0.07695406,2573.5,2573.4,6.26062]
[1727014922359,0.0118,2573.8,2573.4,6.26062]
[1727014922578,0.07695406,2573.5,2573.4,6.26062]
[1727014922784,0.0118,2573.8,2573.4,6.26062]
[1727014922970,7.43,2574.1,2573.5,3.88566]
[1727014923172,3.88487,2574.1,2573.5,3.88566]
[1727014923343,3.89651,2574.2,2573.5,3.88566]
[1727014923547,3.88487,2574.1,2573.6,3.88559]
[1727014924879,3.88501,2574.0,2573.5,3.88566]
[1727014925295,3.88501,2574.0,2573.4,2.3748]
[1727014925296,0.0118,2573.8,2573.4,2.3748]
[1727014925690,0.0118,2573.8,2573.4,6.26069]
[1727014926377,3.89681,2574.0,2573.4,6.26062]
[1727014926579,0.0118,2574.0,2573.6,3.8856]
[1727014928192,0.0118,2574.0,2573.6,7.7711]
[1727014928393,0.0118,2574.0,2573.6,7.771]
[1727014928707,0.0118,2574.3,2573.8,3.88528]
[1727014928951,3.89644,2574.3,2573.9,2.3748]
[1727014929073,3.8847,2574.2,2573.9,2.3748]
[1727014929275,3.8847,2574.2,2573.7,6.26025]
[1727014929472,0.07692137,2574.1,2573.7,6.26025]
[1727014929868,0.07692137,2574.1,2573.7,2.3748]
[1727014930072,0.07692137,2574.1,2573.6,3.88552]
[1727014930073,0.0118,2574.0,2573.6,3.88552]
[1727014930280,0.0887131,2574.0,2573.6,3.88552]
[1727014930520,0.0887131,2574.0,2573.6,3.8855]
[1727014931616,0.0887131,2574.0,2573.7,3.88545]
[1727014931924,0.0769131,2574.0,2573.7,3.88545]
[1727014932083,0.0118,2574.2,2573.7,3.88545]
[1727014932282,0.07690483,2573.9,2573.7,3.88545]
[1727014932487,3.8965,2574.2,2573.7,3.88545]
[1727014932732,0.07692523,2573.8,2573.7,3.88545]
[1727014932930,3.8965,2574.2,2573.7,3.88545]
[1727014933095,0.07692523,2573.8,2573.7,3.88545]
[1727014933297,3.8965,2574.2,2573.7,3.88545]
[1727014933528,0.07692523,2573.8,2573.7,3.88545]
[1727014933741,3.8965,2574.2,2573.7,3.88545]
[1727014934028,0.07692523,2573.8,2573.7,3.88545]
[1727014934231,0.0118,2574.2,2573.5,2.3748]
[1727014934542,0.0118,2573.7,2573.4,3.88582]
[1727014934702,0.0118,2573.7,2573.2,6.26089]
[1727014935035,0.07676187,2573.6,2573.2,6.26089]
[1727014935531,0.07676187,2573.6,2573.1,3.88625]
[1727014935731,0.07676187,2573.6,2573.2,3.88618]
[1727014935899,3.96239187,2573.6,2573.1,3.88625]
[1727014936106,3.88578,2573.5,2573.0,2.3748]
[1727014936301,0.0118,2573.4,2573.0,2.3748]
[1727014936498,0.08850896,2573.4,2573.0,6.26128]
[1727014936798,0.08850896,2573.4,2573.1,3.88628]
[1727014937032,0.07670896,2573.4,2573.2,3.88621]
[1727014937350,0.07670069,2573.3,2573.1,3.88627]
[1727014937496,0.0118,2573.6,2573.0,2.3748]
[1727014937693,0.07669241,2573.2,2573.0,2.3748]
[1727014937964,3.88584,2573.5,2573.0,2.3748]
[1727014938297,0.0118,2573.3,2572.9,3.88656]
[1727014938532,0.0118,2573.3,2572.9,3.88655]
[1727014938749,0.07661056,2573.2,2572.9,4.52816813]
[1727014938915,0.0118,2573.6,2573.1,6.33826]
[1727014940003,0.0118,2573.9,2572.8,3.0]
[1727014940221,0.0118,2573.3,2572.8,6.88671]
[1727014941634,0.0118,2573.3,2572.9,3.88664]
[1727014942032,3.89719,2573.8,2573.0,2.3988]
[1727014942567,3.8856,2573.6,2573.1,3.88622]
[1727014943135,3.88576,2573.5,2573.0,2.3988]
[1727014943322,7.7713,2573.6,2573.0,6.2853]
[1727014943724,3.88578,2573.5,2573.0,6.2853]
[1727014944225,3.89758,2573.5,2573.0,6.2853]
[1727014944429,0.0118,2573.5,2573.0,6.2853]
[1727014944851,0.07643368,2573.4,2573.1,3.88628]
[1727014947931,0.07643368,2573.4,2573.0,6.2853]
[1727014948153,0.07643368,2573.4,2573.0,10.17171]
[1727014948462,0.07643368,2573.4,2573.0,6.28521]
[1727014948667,1.29146873,2573.4,2573.0,10.17163]
[1727014948967,1.29146873,2573.4,2573.0,6.28521]
[1727014949163,1.29146873,2573.4,2573.0,10.17163]
[1727014950572,1.29146873,2573.4,2573.3,3.88606]
[1727014950573,0.07643368,2573.4,2573.3,3.88606]
[1727014950862,0.07643368,2573.4,2573.3,6.28486]
[1727014951065,0.07643368,2573.4,2573.3,2.3988]
[1727014951226,1.21503505,2573.6,2573.3,2.3988]
[1727014951428,0.07648026,2573.4,2573.3,2.3988]
[1727014951927,1.21503505,2573.6,2573.3,2.3988]
[1727014952140,0.07648854,2573.5,2573.3,2.3988]
[1727014952341,1.29152359,2573.5,2573.3,2.3988]
[1727014952568,1.29152359,2573.5,2573.1,6.28502]
[1727014952974,1.29152359,2573.5,2573.1,10.17129]
[1727014953766,1.29152359,2573.5,2573.2,3.8862]
[1727014954267,1.29152359,2573.5,2573.3,3.88605]
[1727014954568,0.07648854,2573.5,2573.4,6.2847]
[1727014954956,1.21503505,2573.7,2573.4,6.2847]
[1727014955158,0.07402351,2573.6,2573.4,6.2847]
[1727014955771,0.07402351,2573.6,2573.5,3.88575]
[1727014956263,1.21503505,2573.8,2573.5,3.88575]
[1727014956264,1.21503505,2573.8,2573.5,3.88574]
[1727014956776,0.07410341,2573.7,2573.5,3.88574]
[1727014957151,1.21503505,2573.8,2573.5,3.88574]
[1727014957440,0.07410341,2573.7,2573.5,3.88574]
[1727014957875,1.21503505,2573.8,2573.5,3.88574]
[1727014958464,0.07410341,2573.7,2573.5,3.88574]
[1727014958841,1.21503505,2573.8,2573.5,3.88574]
[1727014959067,0.07409514,2573.6,2573.5,3.88574]
[1727014959465,1.21503505,2573.8,2573.5,3.88574]
[1727014959791,0.07410341,2573.7,2573.5,3.88574]
[1727014960001,0.07410341,2573.7,2573.4,6.28469]
[1727014960189,1.21503505,2573.8,2573.4,6.28469]
[1727014960358,0.07409514,2573.6,2573.4,6.28469]
[1727014960694,0.07408687,2573.5,2573.4,6.28462]
[1727014960855,1.21503505,2573.7,2573.4,2.3988]
[1727014961057,0.07409514,2573.6,2573.3,3.0]
[1727014961259,3.95970514,2573.6,2573.2,2.4271]
[1727014961967,0.07409514,2573.6,2573.3,3.88598]
[1727014962167,0.07409514,2573.6,2573.2,6.3132]
[1727014962992,0.08589514,2573.6,2573.2,6.3132]
[1727014963363,1.30093019,2573.6,2573.2,2.4271]
[1727014963782,5.18659019,2573.6,2573.2,2.4271]
[1727014963969,3.88576,2573.5,2573.1,3.0]
[1727014964164,3.88576,2573.5,2573.0,2.84556534]
[1727014964165,5.10095505,2573.4,2573.0,2.84556534]
[1727014964395,1.21503505,2573.4,2573.0,2.4932]
[1727014964603,0.07404721,2573.3,2573.0,2.4932]
[1727014966546,0.07404721,2573.3,2573.0,6.37966]
[1727014967107,5.10079505,2573.5,2573.0,6.37966]
[1727014967400,0.07402861,2573.2,2573.0,6.37966]
[1727014967603,5.10079505,2573.5,2573.0,6.37966]
[1727014967805,0.07402034,2573.1,2573.0,6.37966]
[1727014968268,1.21503505,2573.5,2573.1,3.88634]
[1727014968471,0.07404516,2573.4,2573.2,3.88617]
[1727014968720,0.07404516,2573.4,2573.1,7.77259]
[1727014969315,1.22683505,2573.6,2573.1,7.77259]
[1727014969472,0.07395809,2573.3,2573.2,3.88618]
[1727014969671,1.22683505,2573.6,2573.2,3.88618]
[1727014970017,0.07397464,2573.5,2573.2,3.88618]
[1727014970570,1.28900969,2573.5,2572.9,7.08449201]
[1727014970913,1.28900969,2573.5,2573.1,3.88626]
[1727014971069,1.28900969,2573.5,2573.1,7.77254]
[1727014971770,1.28900969,2573.5,2572.9,7.08445201]
[1727014971982,3.88651,2573.0,2572.9,0.70471201]
[1727014972183,3.89831,2573.0,2572.9,0.70471201]
[1727014972518,3.97224686,2573.0,2572.9,0.70471201]
[1727014972812,5.59229359,2573.0,2572.9,0.70471201]
[1727014973016,3.97224686,2573.0,2572.9,0.70471201]
[1727014973803,5.18985846,2573.0,2572.9,0.70471201]
[1727014974168,3.97224686,2573.0,2572.9,0.70471201]
[1727014974381,5.18977497,2573.0,2572.9,0.70471201]
[1727014974605,5.18955619,2573.0,2572.9,0.70471201]
[1727014975006,5.59229359,2573.0,2572.9,0.70471201]
[1727014975192,3.97224686,2573.0,2572.9,0.70471201]
[1727014975909,3.97224686,2573.0,2572.9,0.70368479]
[1727014976203,5.18930015,2573.0,2572.9,0.70368479]
[1727014977019,3.97224686,2573.0,2572.9,0.70368479]
[1727014979737,3.97224686,2573.0,2572.6,0.0381148]
[1727014980906,5.18930015,2573.0,2572.6,0.0381148]
[1727014981118,3.97224686,2573.0,2572.6,0.0381148]
[1727014981846,0.07393686,2573.0,2572.6,3.9251348]
[1727014982135,0.07393686,2573.0,2572.7,2.4308]
[1727014982338,5.11500329,2573.3,2572.7,10.20449]
[1727014982637,0.07321786,2573.2,2572.7,10.20449]
[1727014983203,0.07321786,2573.2,2572.7,6.31763]
[1727014983820,0.07321786,2573.2,2572.8,3.8868]
[1727014984215,5.11500329,2573.3,2572.8,3.8868]
[1727014984542,5.50604673,2573.4,2572.9,3.88657]
[1727014984543,0.07321786,2573.2,2572.9,3.88657]
[1727014984705,0.07321786,2573.2,2573.1,2.4308]
[1727014984913,1.21705329,2573.4,2573.1,2.4308]
[1727014985145,0.07327057,2573.2,2573.1,2.4308]
[1727014985319,1.21705329,2573.4,2573.1,2.4308]
[1727014985519,0.07327057,2573.2,2573.1,2.4308]
[1727014985827,1.21705329,2573.4,2573.1,2.4308]
[1727014986037,0.07327057,2573.2,2572.9,6.31735]
[1727014986543,0.0733232,2573.1,2573.0,3.88649]
[1727014986845,5.10283329,2573.5,2573.0,3.88649]
[1727014987027,0.07331182,2573.1,2573.0,3.88649]
[1727014987233,5.10283329,2573.5,2573.0,3.88649]
[1727014987451,0.07331519,2573.1,2573.0,3.88649]
[1727014987649,5.10283329,2573.5,2573.0,3.88649]
[1727014988157,5.10283329,2573.5,2572.9,6.31735]
[1727014988158,3.9593136,2573.4,2572.9,6.31735]
[1727014988640,5.17636689,2573.4,2572.9,10.20392]
[1727014988808,1.29039689,2573.4,2572.9,10.20392]
[1727014989009,0.0733436,2573.4,2572.9,10.20392]
[1727014990024,0.0733436,2573.4,2573.0,3.88649]
[1727014994217,1.29039689,2573.4,2573.0,3.88649]
[1727014994413,0.0733436,2573.4,2573.0,3.88649]
[1727014994616,1.29039689,2573.4,2572.9,6.31735]
[1727014994844,1.29039689,2573.4,2572.9,10.20392]
[1727014995252,1.29039689,2573.4,2572.9,6.31735]
[1727014995517,1.29039689,2573.4,2572.9,10.20392]
[1727014995955,1.29039689,2573.4,2573.0,3.88647]
[1727014998961,0.0733436,2573.4,2573.0,3.88647]
[1727014999458,1.29039689,2573.4,2573.0,3.88647]
[1727015005571,1.21705329,2573.3,2573.0,3.88647]
[1727015005778,1.29047458,2573.3,2573.0,3.88647]
[1727015009279,1.29047458,2573.3,2572.9,6.31735]
[1727015009465,0.0118,2573.2,2572.6,2.3153148]
[1727015009666,1.21705329,2573.1,2572.7,3.88687]
[1727015009855,1.29051199,2573.1,2572.7,3.88687]
[1727015012685,1.29051199,2573.1,2572.8,3.8868]
[1727015013047,0.0734587,2573.1,2572.8,3.8868]
[1727015013574,1.29051199,2573.1,2572.8,3.8868]
[1727015014480,1.29051199,2573.1,2572.7,3.88696]
[1727015014842,5.17688199,2573.1,2572.7,3.88696]
[1727015015075,5.10364329,2573.0,2572.6,0.0381148]
[1727015015390,5.18888943,2572.9,2572.6,0.0381148]
[1727015015688,1.21705329,2572.8,2572.6,0.0381148]
[1727015016045,0.07334959,2572.7,2572.6,0.0381148]
[1727015016254,0.07334959,2572.7,2572.6,3.9252248]
[1727015016541,0.0732531,2572.7,2572.6,3.9252248]
[1727015016745,1.22885329,2572.9,2572.6,3.9252248]
[1727015016965,1.21705329,2572.8,2572.6,3.9252248]
[1727015017168,1.29032713,2572.8,2572.6,3.9252248]
[1727015017579,0.0118,2572.7,2572.6,0.0381148]
[1727015017747,0.085113,2572.7,2572.6,0.0381148]
[1727015019761,0.073313,2572.7,2572.6,0.0381148]
[1727015019962,1.21705329,2572.8,2572.6,0.0381148]
[1727015020197,0.07315893,2572.7,2572.6,0.0381148]
[1727015020364,1.21705329,2572.8,2572.6,3.9252148]
[1727015020566,0.07308726,2572.7,2572.6,3.9252148]
[1727015020871,1.21705329,2572.9,2572.6,3.9252148]
[1727015021396,0.07309554,2572.8,2572.6,3.9252148]
[1727015025103,0.07309554,2572.8,2572.6,0.0381148]
[1727015025802,0.07309554,2572.8,2572.6,3.9251948]
[1727015025984,0.07309554,2572.8,2572.7,6.21996]
[1727015026192,1.21705329,2573.0,2572.7,6.21996]
[1727015026504,0.07313497,2572.8,2572.7,6.21996]
[1727015026661,1.21705329,2573.1,2572.8,3.88667]
[1727015026662,1.21705329,2573.0,2572.8,3.88667]
[1727015027614,1.21705329,2573.0,2572.7,3.88695]
[1727015027785,1.21705329,2573.0,2572.7,7.77382]
[1727015027987,1.21705329,2573.0,2572.7,3.88687]
[1727015029385,1.21705329,2573.0,2572.7,7.77371]
[1727015029586,1.21705329,2573.1,2572.7,7.77371]
[1727015029822,1.21705329,2573.0,2572.7,7.77371]
[1727015030706,1.21705329,2573.1,2572.7,7.77371]
[1727015031102,1.21705329,2573.1,2572.7,3.88684]
[1727015031398,1.21705329,2573.0,2572.7,3.88684]
[1727015031811,1.21705329,2573.0,2572.7,7.77371]
[1727015032425,1.21705329,2573.0,2572.6,3.9251248]
[1727015032600,1.21705329,2572.9,2572.6,3.9251248]
[1727015033191,1.21705329,2573.0,2572.6,3.9251248]
[1727015033392,1.21705329,2572.9,2572.7,3.88694]
[1727015033800,1.21705329,2573.0,2572.7,3.88694]
[1727015034037,1.21705329,2573.0,2572.6,0.0381148]
[1727015034203,1.62004673,2573.1,2572.6,0.0381148]
[1727015034204,1.21705329,2572.8,2572.6,0.0381148]
[1727015034615,0.07321558,2572.7,2572.6,0.0381148]
[1727015034938,1.21705329,2572.8,2572.6,0.0381148]
[1727015035112,0.07320799,2572.7,2572.6,0.0381148]
[1727015035542,0.07319661,2572.7,2572.6,0.0381148]
[1727015035943,1.21705329,2572.8,2572.6,0.0381148]
[1727015036278,0.07313188,2572.7,2572.6,0.0381148]
[1727015036727,1.21705329,2572.8,2572.6,0.0381148]
[1727015036916,0.07310322,2572.7,2572.6,0.0381148]
[1727015037318,1.21705329,2572.8,2572.6,0.0381148]
[1727015037643,0.07310322,2572.7,2572.6,0.0381148]
[1727015038043,1.21705329,2572.8,2572.6,0.0381148]
[1727015038370,0.07310322,2572.7,2572.6,0.0381148]
[1727015038554,5.51880673,2572.7,2572.6,0.0381148]
[1727015038761,5.59187416,2572.7,2572.6,0.0381148]
[1727015039059,6.00410482,2572.7,2572.6,0.0381148]
[1727015039423,5.59734176,2572.7,2572.6,0.0381148]
[1727015039760,3.97182743,2572.7,2572.6,0.0381148]
[1727015040066,5.59734311,2572.7,2572.6,0.0381148]
[1727015040221,3.97182743,2572.7,2572.6,0.0381148]
[1727015040422,3.97182743,2572.7,2571.8,0.0381148]
[1727015040423,0.0118,2571.9,2571.8,0.0381148]
[1727015040629,5.93150944,2571.9,2571.8,0.0381148]
[1727015040883,2.11575499,2571.9,2571.8,0.0381148]
[1727015041043,2.91658672,2571.9,2571.8,0.0381148]
[1727015041239,1.29155684,2571.9,2571.8,0.0381148]
[1727015041453,0.07277732,2571.9,2571.8,0.0381148]
[1727015041928,0.88439888,2571.9,2571.8,0.0381148]
[1727015042132,0.88438608,2571.9,2571.8,0.0381148]
[1727015042470,0.07277732,2571.9,2571.8,0.0381148]
[1727015042675,0.88438608,2571.9,2571.8,0.0381148]
[1727015042975,0.07277732,2571.9,2571.8,0.0381148]
[1727015044124,0.81160876,2572.1,2571.8,0.0381148]
[1727015044360,0.07246849,2571.9,2571.8,0.0381148]
[1727015044559,0.81160876,2572.1,2571.8,0.0381148]
[1727015044766,4.69935876,2572.2,2571.8,0.0381148]
[1727015045242,3.96036996,2572.1,2571.8,0.0381148]
[1727015045429,0.07249996,2572.1,2571.8,0.0381148]
[1727015045941,0.88410872,2572.1,2571.8,0.0381148]
[1727015046142,0.07249996,2572.1,2571.8,0.0381148]
[1727015046972,0.07249996,2572.1,2571.9,2.3527]
[1727015047275,0.81160876,2572.3,2571.9,2.3527]
[1727015047431,0.07253831,2572.0,2571.9,2.3527]
[1727015047765,0.07254118,2572.0,2571.9,2.3527]
[1727015048132,0.81160876,2572.3,2571.9,2.3527]
[1727015048335,0.0725421,2572.0,2571.9,2.3527]
[1727015048554,0.81160876,2572.3,2571.9,2.3527]
[1727015048778,0.07251492,2572.0,2571.9,2.3527]
[1727015048977,0.07251492,2572.0,2571.9,1.01674248]
[1727015049307,0.07249737,2572.0,2571.8,0.0381148]
[1727015049767,3.8878,2572.2,2571.8,0.0381148]
[1727015049945,0.07248132,2571.9,2571.8,0.0381148]
[1727015050462,3.8878,2572.2,2571.8,0.0381148]
[1727015050768,0.07249908,2571.9,2571.8,0.0381148]
[1727015050971,3.8878,2572.2,2571.8,0.0381148]
[1727015051127,0.07249054,2572.1,2571.8,0.0381148]
[1727015051333,0.07247738,2571.9,2571.8,3.9264348]
[1727015051638,4.69910876,2572.4,2571.9,2.3527]
[1727015052348,8.58663876,2572.4,2571.9,2.3527]
[1727015052548,3.88765,2572.3,2571.9,2.3527]
[1727015053601,3.88774,2572.2,2571.9,2.3527]
[1727015053772,3.88774,2572.2,2571.8,0.0381148]
[1727015053960,3.88804,2572.0,2571.8,0.0381148]
[1727015054159,4.69934876,2572.2,2571.8,0.0381148]
[1727015054371,0.0118,2572.1,2571.8,0.0381148]
[1727015054693,3.88817,2571.9,2571.8,0.0381148]
[1727015055198,4.69962876,2572.0,2571.8,0.0381148]
[1727015055199,8.58773876,2572.0,2571.8,0.0381148]
[1727015055401,3.88817,2571.9,2571.8,0.0381148]
[1727015055898,4.69977876,2571.9,2571.8,0.0381148]
[1727015056256,3.88817,2571.9,2571.8,0.0381148]
[1727015058968,4.69962876,2572.0,2571.8,0.0381148]
[1727015059295,3.88817,2571.9,2571.8,0.0381148]
[1727015062386,4.69977876,2571.9,2571.8,0.0381148]
[1727015063373,3.88817,2571.9,2571.8,0.0381148]
[1727015064373,3.89997,2571.9,2571.8,0.0381148]
[1727015064574,4.78377765,2571.9,2571.8,0.0381148]
[1727015065099,3.97216889,2571.9,2571.8,0.0381148]
[1727015065301,4.78377765,2571.9,2571.8,0.0381148]
[1727015067097,4.7818581,2571.9,2571.8,0.0381148]
[1727015067324,4.7818588,2571.9,2571.8,0.0381148]
[1727015067475,3.97216889,2571.9,2571.8,0.0381148]
[1727015067806,4.78179097,2571.9,2571.8,0.0381148]
[1727015068467,5.19094841,2571.9,2571.8,0.0381148]
[1727015071000,3.97216889,2571.9,2571.8,0.0381148]
[1727015071213,5.19094841,2571.9,2571.8,0.0381148]
[1727015072014,3.97216889,2571.9,2571.8,0.0381148]
[1727015072507,5.19094841,2571.9,2571.8,0.0381148]
[1727015074216,3.97216889,2571.9,2571.8,0.0381148]
[1727015074710,5.59719877,2571.9,2571.8,0.0381148]
[1727015075766,3.97216889,2571.9,2571.8,0.0381148]
[1727015076113,5.99603892,2571.9,2571.8,0.0381148]
[1727015077602,5.99754337,2571.9,2571.8,0.0381148]
[1727015080070,3.97216889,2571.9,2571.8,0.0381148]
[1727015080470,5.99966353,2571.9,2571.8,0.0381148]
[1727015080676,3.97216889,2571.9,2571.8,0.0381148]
[1727015080867,5.99977559,2571.9,2571.8,0.0381148]
[1727015081614,3.97216889,2571.9,2571.8,0.0381148]
[1727015082077,6.00020203,2571.9,2571.8,0.0381148]
[1727015082776,3.96036889,2571.9,2571.8,0.0381148]
[1727015082972,5.58365546,2571.9,2571.8,0.0381148]
[1727015083234,5.98840203,2571.9,2571.8,0.0381148]
[1727015086184,3.96036889,2571.9,2571.8,0.0381148]
[1727015086601,3.96036889,2571.9,2571.8,2.4270148]
[1727015086602,5.99103108,2571.9,2571.8,2.4270148]
[1727015086914,5.5850013,2571.9,2571.8,2.4270148]
[1727015087291,3.96036889,2571.9,2571.8,2.4270148]
[1727015088031,5.5850013,2571.9,2571.8,2.4270148]
[1727015088720,5.5850013,2571.9,2571.8,0.0381148]
[1727015089016,3.96036889,2571.9,2571.8,0.0381148]
[1727015090521,6.97216889,2571.9,2571.8,0.0381148]
[1727015090907,9.81514886,2571.9,2571.8,0.0381148]
[1727015091815,6.97216889,2571.9,2571.8,0.0381148]
[1727015093747,9.81514886,2571.9,2571.8,0.0381148]
[1727015095429,6.97216889,2571.9,2571.8,0.0381148]
[1727015095626,9.81647188,2571.9,2571.8,0.0381148]
[1727015096142,9.81723932,2571.9,2571.8,0.0381148]
[1727015096302,9.81729441,2571.9,2571.8,0.0381148]
[1727015097447,6.97216889,2571.9,2571.8,0.0381148]
[1727015098001,9.81764528,2571.9,2571.8,0.0381148]
[1727015098438,6.97216889,2571.9,2571.8,0.0381148]
[1727015098904,9.8182679,2571.9,2571.8,0.0381148]
[1727015099109,9.81821739,2571.9,2571.8,0.0381148]
[1727015099419,6.97216889,2571.9,2571.8,0.0381148]
[1727015100205,9.81845973,2571.9,2571.8,0.0381148]
[1727015100855,9.81925606,2571.9,2571.8,0.0381148]
[1727015101928,6.97216889,2571.9,2571.8,0.0381148]
[1727015102131,9.81935693,2571.9,2571.8,0.0381148]
[1727015102355,6.97216889,2571.9,2571.8,0.0381148]
[1727015107065,6.96036889,2571.9,2571.8,0.0381148]
[1727015107247,3.96036889,2571.9,2571.8,0.0381148]
[1727015113763,3.96036889,2571.9,2571.8,2.2924148]
[1727015114270,0.07219889,2571.9,2571.8,2.2924148]
[1727015115777,2.10548101,2571.9,2571.8,2.2924148]
[1727015116236,0.07219889,2571.9,2571.8,2.2924148]
[1727015116437,2.10517928,2571.9,2571.8,2.2924148]
[1727015116628,0.07219889,2571.9,2571.8,2.2924148]
[1727015118066,2.10517928,2571.9,2571.8,2.2924148]
[1727015118574,1.69840132,2571.9,2571.8,2.2924148]
[1727015118864,2.10517928,2571.9,2571.8,2.2924148]
[1727015119070,0.07219889,2571.9,2571.8,2.2924148]
[1727015119568,1.69831194,2571.9,2571.8,2.52165628]
[1727015119989,1.29177079,2571.9,2571.8,2.52165628]
[1727015120331,0.07219889,2571.9,2571.8,2.52165628]
[1727015121143,1.29168757,2571.9,2571.8,2.52165628]